Cogmind - Beta 14 @@@ ROGUE MODE // 2025.01.02 @ 12:16:51 Player: Nika Jay Result: Destroyed by Y-64 Sentinel with Wave Gun Performance ------------- Evolutions (3) 1500 Regions Visited (11) 2200 Robots Destroyed (119) 595 Value Destroyed (5120) 5120 Prototype IDs (26) 520 Alien Tech Used (0) 0 Bonus (2435) 2435 TOTAL SCORE: 12370 Bonus ------- High Alert Combat Kills 633 Follower Combat Kills 200 Entered Garrisons 400 Used RIF Installer 1000 Aligned with FarCom 300 Friendly Fire -98 Cogmind --------- Core Integrity 0/700 Matter 244/300 Energy 267/275 System Corruption 15% Temperature Cool (13) Movement Treading (240) Ox1 Location -7/Lower Caves Parts ------- > --- POWER (1) -------- Deuterium Engine > --- PROPULSION (4) --- Improved Treads Improved Heavy Treads > --- UTILITY (6) ------ Cargo Storage Unit Improved Melee Analysis Suite Relay Coupler [Duelist] (16) Relay Coupler [Sentry] (11) Relay Coupler [Hunter] (18) > --- WEAPON (2) ------- Remote Datajack Axe > --- INVENTORY (30) --- Heavy Ion Engine Improved Heavy Treads Armored Wheel Armored Wheel Improved Heat Sink Stasis Canceller Relay Coupler [Swarmer] (47) Relay Coupler [Cutter] (33) Relay Coupler [Grunt] (33) Relay Coupler [Specialist] (22) Lightning Gun Lightning Gun Heavy Ion Cannon Coil Gun Rocket Launcher Improved Datajack Axe Axe Peak State ------------ > --- POWER ------------ Reinforced Deuterium Engine > --- PROPULSION ------- Improved Heavy Treads Improved Heavy Treads > --- UTILITY ---------- Cargo Storage Unit Machine Analyzer Improved Melee Analysis Suite Improved Light Armor Plating Relay Coupler [NC] > --- WEAPON ----------- Remote Datajack Axe > --- INVENTORY -------- Heavy Ion Engine Deuterium Engine Light Treads Improved Treads Improved Treads Improved Heavy Treads Armored Wheel Armored Wheel Stasis Canceller Relay Coupler [Swarmer] Relay Coupler [Cutter] Relay Coupler [Grunt] Relay Coupler [Duelist] Relay Coupler [Sentry] Relay Coupler [Specialist] Relay Coupler [Hunter] Lightning Gun Lightning Gun Heavy Ion Cannon Coil Gun Rocket Launcher Improved Datajack Remote Datajack Axe Axe [Rating: 61] Favorites ----------- Power Ion Engine Engine Ion Engine Power Core Nuclear Core Propulsion Light Treads Treads Light Treads Leg Aluminum Leg Wheel Armored Wheel Utility High-capacity Storage Unit Device Improved Heat Sink Storage High-capacity Storage Unit Processor Improved Melee Analysis Suite Hackware Relay Coupler [Grunt] Protection Light Armor Plating Weapon Axe Energy Gun Lightning Gun Energy Cannon Latent Energy Streamer Ballistic Gun Light Assault Rifle Launcher Rocket Launcher Special Weapon Remote Datajack Slashing Weapon Axe Build | -11 -10 -10 -10 -9 -8 -8 -8 -7 -7 -7 -7 ------- Run | Yrd Mat Min Exi Min Mat Gar Mat Fac Gar Fac Low Slots Evolved 6 | . . . . . 4 . . 2 . . . Power . | . . . . . . . . . . . . Propulsion 2 | . . . . . 1 . . 1 . . . Utility 4 | . . . . . 3 . . 1 . . . Weapon . | . . . . . . . . . . . . Parts Attached 160 | 7 9 9 4 4 24 30 10 2 34 20 7 Power 14 | 1 1 1 . 1 2 3 . . 3 1 1 Engine 10 | 1 1 1 . 1 2 . . . 3 . 1 Core 4 | . . . . . . 3 . . . 1 . Reactor . | . . . . . . . . . . . . Propulsion 53 | 2 4 2 . 2 10 14 4 1 7 7 . Treads 29 | 2 . . . . 2 8 4 1 5 7 . Leg 12 | . 4 2 . 2 2 2 . . . . . Wheel 12 | . . . . . 6 4 . . 2 . . Hover . | . . . . . . . . . . . . Flight . | . . . . . . . . . . . . Utility 52 | 2 3 3 1 . 8 7 2 1 14 7 4 Device 15 | 1 2 3 . . 1 . . . 4 3 1 Storage 5 | 1 1 . 1 . 1 . . . 1 . . Processor 2 | . . . . . . . . . . 2 . Hackware 13 | . . . . . 2 3 . . 5 . 3 Protection 17 | . . . . . 4 4 2 1 4 2 . Artifact . | . . . . . . . . . . . . Weapon 41 | 2 1 3 3 1 4 6 4 . 10 5 2 Energy Gun 4 | 1 . . . . . . . . 2 1 . Energy Cannon 2 | . . . 1 . . 1 . . . . . Ballistic Gun 20 | 1 1 3 2 1 2 3 1 . 5 1 . Ballistic Cannon . | . . . . . . . . . . . . Launcher 1 | . . . . . . . . . . 1 . Special Weapon 9 | . . . . . . 1 2 . 2 2 2 Impact Weapon . | . . . . . . . . . . . . Slashing Weapon 5 | . . . . . 2 1 1 . 1 . . Piercing Weapon . | . . . . . . . . . . . . Special Melee Weapon . | . . . . . . . . . . . . Unidentified Prototypes 3 | . . 1 . . 1 . 1 . . . . Parts Lost 42 | . 2 2 . 4 2 8 . . 9 14 1 Power 4 | . . . . 1 . . . . 1 2 . Propulsion 13 | . 1 1 . 2 1 3 . . 1 3 1 Utility 18 | . 1 . . . 1 3 . . 6 7 . Weapon 7 | . . 1 . 1 . 2 . . 1 2 . Highest Loss Streak 7 | . 2 1 . 4 2 3 . . 3 7 1 To Critical Strikes . | . . . . . . . . . . . . Average Slot Usage (%) 90 | . 99 99 99 99 85 99 98 84 85 74 68 Engine 6 | . 14 14 14 14 9 1 . . 5 5 6 Core 2 | . . . . . . 7 9 7 1 1 . Treads 14 | . 17 . . . 7 16 23 26 17 19 22 Leg 5 | . 9 27 28 27 2 . . . . . . Wheel 5 | . . . . . 15 10 3 . 7 . . Device 6 | . 13 14 14 14 5 8 . . 4 3 6 Storage 9 | . 14 14 14 14 9 9 9 7 7 7 7 Processor 1 | . . . . . . . . . . 9 7 Hackware 9 | . . . . . 4 9 18 15 14 11 7 Protection 8 | . . . . . 12 17 17 11 10 2 . Ballistic Gun 8 | . 26 28 27 28 12 1 . . 2 . . Special Weapon 2 | . . . . . . 6 8 7 3 . . Slashing Weapon 5 | . . . . . 5 9 9 7 7 7 7 Peak Build Rating 61 | 7 8 16 26 9 31 37 33 36 58 61 51 Average Rating 31 | 5 7 7 8 8 21 29 31 33 49 54 44 On Entrance 21 | . 7 8 8 9 9 31 31 30 36 55 35 Naked Turns . | . . . . . . . . . . . . Heaviest Build 172 | 14 18 18 26 28 63 68 59 63 172 164 156 Greatest Support 150 | 40 40 20 20 20 32 40 63 86 118 150 118 Greatest Overweight (x) 7 | . 1 . 1 1 2 4 4 . 7 1 1 Average Overweight (x) 1 | . . . . 1 1 3 1 . 3 . 1 Largest Inventory Capacity 30 | 8 10 10 15 15 20 20 20 20 30 30 30 Average Capacity 20 | 5 8 10 14 15 19 20 20 20 26 30 30 Most Carried 30 | 4 10 10 14 14 20 20 20 20 30 30 24 Average Carried 19 | 1 6 9 11 11 17 19 19 19 26 27 20 Final Capacity 30 | 8 10 10 15 15 20 20 20 20 30 30 30 Final Carried 30 | 4 10 10 12 10 20 20 20 19 30 24 19 Class Distribution -------------------- 47% | Bothacker-Mutant 45% | Scavenger-Mutant 7% | Mutant Dominant Class ---------------- Mutant | -10/Materials Scavenger-Mutant | -10/Mines Scavenger-Mutant | -10/Exiles Scavenger-Mutant | -9/Mines Scavenger-Mutant | -8/Materials Scavenger-Mutant | -8/Garrison Bothacker-Mutant | -8/Materials Bothacker-Mutant | -7/Factory Bothacker-Mutant | -7/Garrison Bothacker-Mutant | -7/Factory Bothacker-Mutant | -7/Lower Caves Resources | -11 -10 -10 -10 -9 -8 -8 -8 -7 -7 -7 -7 ----------- Run | Yrd Mat Min Exi Min Mat Gar Mat Fac Gar Fac Low Matter Collected 2928 | 288 210 141 52 24 467 534 164 89 523 398 38 Remotely . | . . . . . . . . . . . . Salvage Created 6015 | 162 611 225 . 55 1075 1353 297 24 1359 854 . Parts 298 | 17 45 24 . 4 55 56 9 1 49 38 . Haulers Intercepted 3 | . 1 . . . 2 . . . . . . Recyclers Shooed 3 | 1 1 . . . 1 . . . . . . Parts Field Recycled . | . . . . . . . . . . . . Retrieved Matter . | . . . . . . . . . . . . Parts Self-Destructed 7 | . . . . . . . . . . . 7 Prevented 3 | . . . . . . . . . . . 3 Kills | -11 -10 -10 -10 -9 -8 -8 -8 -7 -7 -7 -7 ------- Run | Yrd Mat Min Exi Min Mat Gar Mat Fac Gar Fac Low Combat Hostiles Destroyed 81 | . 9 9 . 1 14 22 . . 14 12 . Melee 52 | . . . . . 9 21 . . 12 10 . Guns 25 | . 9 9 . 1 5 . . . 1 . . AOE 4 | . . . . . . 1 . . 1 2 . Classes Destroyed 16 | 2 6 . . 1 3 3 . . 1 . . Worker 3 | . . . . . 1 . . 1 . 1 . Tunneler 10 | 5 2 2 . 1 . . . . . . . Hauler 3 | . 1 . . . 2 . . . . . . Recycler 14 | 1 2 . . . 4 . 4 . . 3 . Mechanic 2 | . 1 . . . . . . . . 1 . Operator 3 | . 1 . . . 2 . . . . . . Watcher 3 | . 1 . . . . . . . 1 1 . Swarmer 14 | . 2 7 . . 4 . . . 1 . . Grunt 37 | . 7 2 . . 6 11 . . 7 4 . Brawler 2 | . . . . . . 1 . . 1 . . Duelist 1 | . . . . . . . . . 1 . . Sentry 10 | . . . . . 3 3 . . 2 2 . Demolisher 1 | . . . . 1 . . . . . . . Specialist 3 | . . . . . . 2 . . . 1 . Hunter 5 | . . . . . 1 1 . . 1 2 . Programmer 8 | . . . . . . 4 . . 1 3 . Best Kill Streak 7 | 3 4 3 . 1 7 3 2 1 2 4 . Combat Bots Only 7 | . 3 3 . 1 7 3 . . 2 3 . Max Kills in Single Turn 2 | 1 1 2 . 1 1 1 1 1 1 1 . Gunslinging 1 | . . 1 . . . . . . . . . Exploded 1 | . . . . . . 1 . . 1 1 . Melee 1 | . . . . . 1 1 . . 1 1 . Uniques/NPCs Destroyed . | . . . . . . . . . . . . Combat | -11 -10 -10 -10 -9 -8 -8 -8 -7 -7 -7 -7 -------- Run | Yrd Mat Min Exi Min Mat Gar Mat Fac Gar Fac Low Hostile Shots Fired 914 | . 59 43 . 8 99 155 4 . 212 320 14 Missed 253 | . 11 13 . . 27 45 . . 60 92 5 Damage Taken 9249 | . 619 277 . 300 931 1738 59 . 2334 2795 196 Core 1485 | . 117 55 . 57 197 336 15 . 326 357 25 Absorbed by Shields . | . . . . . . . . . . . . Ignored by Resistances 115 | . . . . . 24 91 . . . . . Regen/Repaired (Parts) 258 | . . . . . . . 157 . . 101 . Core Remaining (%) 36 | 100 . . . 8 . . . . . . . Volleys Fired 232 | 23 65 34 . 9 53 3 6 . 30 6 3 Largest 2 | 2 2 2 . 2 2 1 1 . 1 1 1 Hottest 70 | 70 40 40 . 40 48 60 5 . 30 33 5 Shots Fired 405 | 46 130 68 . 18 93 3 6 . 29 9 3 Gun 383 | 46 130 68 . 18 93 . . . 26 2 . Cannon 2 | . . . . . . 2 . . . . . Launcher 7 | . . . . . . . . . . 7 . Special 13 | . . . . . . 1 6 . 3 . 3 Kinetic 358 | 23 130 68 . 18 93 . . . 26 . . Thermal 23 | 23 . . . . . . . . . . . Explosive 7 | . . . . . . . . . . 7 . Electromagnetic 4 | . . . . . . 2 . . . 2 . Robot Hit Streak 15 | 4 15 9 . 3 14 8 9 . 5 7 10 Robot Miss Streak 5 | 3 3 5 . 1 3 . 1 . 2 3 . Penetration Max 1 | . . . . . . . . . 1 . . Secondary Targets 2 | . . 2 . . . . . . . . . Max Gunslinging Chain 1 | . . 1 . . . . . . . . . Shots Hit Robots 487 | 25 89 37 . 12 93 81 9 3 91 44 3 Core Hits 210 | 10 36 24 . 6 37 31 3 1 35 27 . Critical Kills 1 | . 1 . . . . . . . . . . Critical Parts Destroyed . | . . . . . . . . . . . . Critical Strikes 18 | 2 1 . . . 1 6 . . 6 2 . Burn 2 | 2 . . . . . . . . . . . Destroy 1 | . 1 . . . . . . . . . . Sever 15 | . . . . . 1 6 . . 6 2 . Melee Attacks 361 | . . . . . 36 160 12 4 99 50 . Impact . | . . . . . . . . . . . . Slashing 361 | . . . . . 36 160 12 4 99 50 . Piercing . | . . . . . . . . . . . . Sneak Attacks 22 | . . . . . 5 4 4 2 2 5 . Combat Hostiles 3 | . . . . . . 2 . . 1 . . Follow-up Attacks . | . . . . . . . . . . . . Damage Inflicted 13116 | 317 727 302 . 92 1845 3391 290 159 3899 2094 . Guns 2556 | 312 721 302 . 92 745 . . . 384 . . Cannons . | . . . . . . . . . . . . Explosions 739 | . . . . . . 164 . . . 575 . Melee 9797 | . . . . . 1100 3227 290 159 3515 1506 . Ramming 24 | 5 6 . . . . . . . . 13 . Kinetic 2346 | 102 721 302 . 92 745 . . . 384 . . Thermal 210 | 210 . . . . . . . . . . . Explosive 540 | . . . . . . . . . . 540 . Electromagnetic 199 | . . . . . . 164 . . . 35 . Impact . | . . . . . . . . . . . . Slashing 9797 | . . . . . 1100 3227 290 159 3515 1506 . Piercing . | . . . . . . . . . . . . Highest Corruption 16 | . . . . . 3 13 16 . 12 15 15 Average Corruption 11 | . . . . . 3 11 13 . 10 13 15 Corruption Purged . | . . . . . . . . . . . . Corruption Blocked . | . . . . . . . . . . . . Effects 308 | . . . . . 20 91 36 . 73 79 9 Message Errors 67 | . . . . . 4 13 7 . 19 21 3 Matter Fused 93 | . . . . . 5 36 14 . 15 22 1 Heat Flow Errors 37 | . . . . . 4 11 2 . 10 9 1 Energy Discharges 37 | . . . . . 1 10 5 . 13 6 2 Parts Rejected 4 | . . . . . . 2 . . 1 1 . Parts Fused 2 | . . . . . . . . . . 1 1 Data Loss (minor) 33 | . . . . . 3 12 2 . 10 5 1 Data Loss (major) 13 | . . . . . 1 5 2 . 2 3 . Misfires 5 | . . . . . 1 . . . 1 3 . Alerts 6 | . . . . . . 1 2 . . 3 . Misdirections 8 | . . . . . . 1 2 . . 5 . Weapon Failures 3 | . . . . . 1 . . . 2 . . Overload Shots . | . . . . . . . . . . . . Overflow Damage 598 | . . . . . 156 194 57 56 60 75 . Projectiles . | . . . . . . . . . . . . Explosions . | . . . . . . . . . . . . Melee 598 | . . . . . 156 194 57 56 60 75 . Knockbacks . | . . . . . . . . . . . . Impact . | . . . . . . . . . . . . Kinetic . | . . . . . . . . . . . . Secondary . | . . . . . . . . . . . . Self-Inflicted Damage 213 | . . . . . . 168 . . . 45 . Shots 5 | . . . . . . 2 . . . 3 . Rammed 6 | 3 2 . . . . . . . . 1 . Targets Rammed 7 | 3 3 . . . . . . . . 1 . Kicked . | . . . . . . . . . . . . Crushed 1 | . 1 . . . . . . . . . . Highest Temperature 267 | 150 55 18 . . 216 253 247 . 267 232 103 Average Temperature 74 | 49 18 8 . . 54 96 129 . 108 84 62 Received Heat Transfer 2430 | . 303 54 . . 216 693 18 . 657 444 45 Effects 1 | . . . . . . 1 . . . . . Energy Bleed 1 | . . . . . . 1 . . . . . Siege Activations . | . . . . . . . . . . . . Robots Corrupted . | . . . . . . . . . . . . Combat Hostiles . | . . . . . . . . . . . . Parts Fried . | . . . . . . . . . . . . Impact Corruptions . | . . . . . . . . . . . . Robots Melted . | . . . . . . . . . . . . Combat Hostiles . | . . . . . . . . . . . . Parts Melted 1 | 1 . . . . . . . . . . . Heat Transferred 777 | 777 . . . . . . . . . . . Parts Sabotaged . | . . . . . . . . . . . . Parts Stolen . | . . . . . . . . . . . . Parts Stripped . | . . . . . . . . . . . . Power Chain Reactions . | . . . . . . . . . . . . Latent Energy Used 128 | . . . . . . 128 . . . . . LE Corruption 3 | . . . . . . 3 . . . . . Alert | -11 -10 -10 -10 -9 -8 -8 -8 -7 -7 -7 -7 ------- Run | Yrd Mat Min Exi Min Mat Gar Mat Fac Gar Fac Low Peak Influence 1646 | 30 186 195 . 20 335 1646 811 275 1189 643 . Initial 802 | . 19 . . . . 217 802 240 192 623 . Average 461 | 10 86 91 . 6 99 839 702 270 579 466 . Maximum Alert Level 5 | . . . . . 1 5 3 1 4 2 . Low Security (%) 30 | 100 100 100 . 100 76 . . . 7 . . Level 1 18 | . . . . . 23 16 . 100 23 30 . Level 2 29 | . . . . . . 22 52 . 42 69 . Level 3 15 | . . . . . . 33 47 . 21 . . Level 4 6 | . . . . . . 24 . . 5 . . Level 5 . | . . . . . . 3 . . . . . High Security . | . . . . . . . . . . . . Max Security . | . . . . . . . . . . . . Squads Dispatched 13 | . 1 . . . 5 . . 2 . 5 . Investigation 2 | . 1 . . . . . . . . 1 . Extermination 3 | . . . . . . . . 1 . 2 . Reinforcement 6 | . . . . . 3 . . 1 . 2 . Assault . | . . . . . . . . . . . . Garrison 2 | . . . . . 2 . . . . . . Intercept . | . . . . . . . . . . . . Searches Triggered . | . . . . . . . . . . . . Construction Impeded 1 | . . . . . . . . . . 1 . Haulers Reinforced . | . . . . . . . . . . . . Active Scanning Responses . | . . . . . . . . . . . . Cargo Convoy Interrupts 1 | . . . . . . . . . . 1 . Stealth | -11 -10 -10 -10 -9 -8 -8 -8 -7 -7 -7 -7 --------- Run | Yrd Mat Min Exi Min Mat Gar Mat Fac Gar Fac Low Distress Signals 1 | . . . . . 1 . . . . . . Communications Jammed . | . . . . . . . . . . . . Distress Signals . | . . . . . . . . . . . . Times Spotted 152 | . 21 13 . 1 23 27 5 2 23 28 9 Peak Tracking Total 9 | . 4 3 . 1 7 5 2 2 4 7 9 Tactical Retreats 15 | . 1 3 . . 1 4 . . 3 3 . Traps | -11 -10 -10 -10 -9 -8 -8 -8 -7 -7 -7 -7 ------- Run | Yrd Mat Min Exi Min Mat Gar Mat Fac Gar Fac Low Traps Triggered 17 | . 2 . . . 1 1 5 . 7 1 . Indirectly . | . . . . . . . . . . . . Trap Hack Attempts . | . . . . . . . . . . . . Triggered . | . . . . . . . . . . . . Disarmed . | . . . . . . . . . . . . Reprogrammed . | . . . . . . . . . . . . Reused . | . . . . . . . . . . . . Traps Extracted . | . . . . . . . . . . . . Installed . | . . . . . . . . . . . . Triggered 2 | . . . . . . . . . . 1 1 Machines | -11 -10 -10 -10 -9 -8 -8 -8 -7 -7 -7 -7 ---------- Run | Yrd Mat Min Exi Min Mat Gar Mat Fac Gar Fac Low Machines Disabled 11 | . . . . . . 5 . . 5 1 . Max in Single Turn 2 | . . . . . . 2 . . 2 1 . Garrison Access 1 | . . . . . . . . . . 1 . Garrison Relay 5 | . . . . . . 2 . . 3 . . Phase Generator 2 | . . . . . . 1 . . 1 . . Machines Repaired . | . . . . . . . . . . . . Machines Dismantled . | . . . . . . . . . . . . Machines Sabotaged . | . . . . . . . . . . . . Overloaded Fab Kills . | . . . . . . . . . . . . Hacking | -11 -10 -10 -10 -9 -8 -8 -8 -7 -7 -7 -7 --------- Run | Yrd Mat Min Exi Min Mat Gar Mat Fac Gar Fac Low Machines Accessed 21 | . 5 . 1 . 4 2 2 2 1 4 . Terminals 12 | . 4 . . . 1 2 1 1 1 2 . Fabricators . | . . . . . . . . . . . . Repair Stations 2 | . . . . . . . 1 . . 1 . Recycling Units 3 | . 1 . . . 2 . . . . . . Scanalyzers . | . . . . . . . . . . . . Garrison Access 3 | . . . . . 1 . . 1 . 1 . Total Hacks 57 | . 16 . 1 . 14 4 7 4 2 9 . Successful 30 | . 7 . 1 . 7 . 5 3 . 7 . Failed 27 | . 9 . . . 7 4 2 1 2 2 . Catastrophic 6 | . 2 . . . . 1 1 . . 2 . Database Lockouts . | . . . . . . . . . . . . Manual 41 | . 16 . 1 . 13 3 2 2 1 3 . Terminals 28 | . 11 . . . 4 4 2 2 2 3 . Fabricators . | . . . . . . . . . . . . Repair Stations 10 | . . . . . . . 5 . . 5 . Recycling Units 14 | . 5 . . . 9 . . . . . . Scanalyzers . | . . . . . . . . . . . . Garrison Access 4 | . . . . . 1 . . 2 . 1 . Terminal Hacks 2 | . 1 . 1 . . . . . . . . Registered Components 1 | . 1 . . . . . . . . . . Derelict Proto ID Bank 1 | . . . 1 . . . . . . . . Fabricator Hacks . | . . . . . . . . . . . . Repair Station Hacks 10 | . . . . . . . 5 . . 5 . Scan Component 6 | . . . . . . . 3 . . 3 . Repair 4 | . . . . . . . 2 . . 2 . Recycling Unit Hacks . | . . . . . . . . . . . . Scanalyzer . | . . . . . . . . . . . . Garrison Access Hacks 4 | . . . . . 1 . . 2 . 1 . Unlock Access 2 | . . . . . 1 . . 1 . . . Seal Access 1 | . . . . . . . . . . 1 . Coupler Status 1 | . . . . . . . . 1 . . . Unauthorized Hacks 14 | . 6 . . . 6 . . 1 . 1 . Terminals 6 | . 2 . . . 2 . . 1 . 1 . Track 1 | . . . . . 1 . . . . . . Assimilate 2 | . 1 . . . . . . . . 1 . Botnet 3 | . 1 . . . 1 . . 1 . . . Fabricators . | . . . . . . . . . . . . Repair Stations . | . . . . . . . . . . . . Recycling Units 8 | . 4 . . . 4 . . . . . . Monitor 1 | . 1 . . . . . . . . . . Reject 3 | . 1 . . . 2 . . . . . . Recyclers 2 | . 1 . . . 1 . . . . . . Mask 2 | . 1 . . . 1 . . . . . . Scanalyzers . | . . . . . . . . . . . . Garrison Access . | . . . . . . . . . . . . Data Cores Recovered . | . . . . . . . . . . . . Used . | . . . . . . . . . . . . Hacking Detections 17 | . 4 . . . 3 2 2 2 1 3 . Full Trace Events 1 | . . . . . . . . . . 1 . Feedback Events . | . . . . . . . . . . . . Feedback Blocked . | . . . . . . . . . . . . Robot Schematics Acquired . | . . . . . . . . . . . . Robots Built . | . . . . . . . . . . . . Authchips . | . . . . . . . . . . . . Time . | . . . . . . . . . . . . Total Robot Build Rating . | . . . . . . . . . . . . Part Schematics Acquired . | . . . . . . . . . . . . Parts Built . | . . . . . . . . . . . . Authchips . | . . . . . . . . . . . . Time . | . . . . . . . . . . . . Total Part Build Rating . | . . . . . . . . . . . . Parts Repaired 4 | . . . . . . . 2 . . 2 . Time 170 | . . . . . . . 82 . . 88 . Parts Recycled . | . . . . . . . . . . . . Recycled Matter . | . . . . . . . . . . . . Retrieved Matter . | . . . . . . . . . . . . Retrieved Components . | . . . . . . . . . . . . Parts Scanalyzed . | . . . . . . . . . . . . Part Schematics Acquired . | . . . . . . . . . . . . Parts Damaged . | . . . . . . . . . . . . Bothacking | -11 -10 -10 -10 -9 -8 -8 -8 -7 -7 -7 -7 ------------ Run | Yrd Mat Min Exi Min Mat Gar Mat Fac Gar Fac Low Used RIF Installer 2 | . . . . . . 1 . . 1 . . Patrol Navigation 1 | . . . . . . . . . 1 . . Robots Hacked 9 | . . . . . . 1 3 . 2 . 3 Non-combat . | . . . . . . . . . . . . Combat 9 | . . . . . . 1 3 . 2 . 3 Robot Hacks Applied 10 | . . . . . . 1 4 . 2 . 3 parse_system 1 | . . . . . . 1 . . . . . amplify_resonance 3 | . . . . . . . . . 2 . 1 wipe_record 2 | . . . . . . . 2 . . . . overwrite_iff 4 | . . . . . . . 2 . . . 2 Relay Couplers Released 28 | . . . . . . 14 . . 14 . . Machine Destruction 24 | . . . . . . 10 . . 14 . . Programmers 4 | . . . . . . 4 . . . . . Attached 11 | . . . . . . 3 . . 5 . 3 Fabnet Peak Effective % . | . . . . . . . . . . . . Robots Rewired 3 | . . . . . . 3 . . . . . Allies Hacked . | . . . . . . . . . . . . Hacks Repelled . | . . . . . . . . . . . . Allies | -11 -10 -10 -10 -9 -8 -8 -8 -7 -7 -7 -7 -------- Run | Yrd Mat Min Exi Min Mat Gar Mat Fac Gar Fac Low Total Allies 8 | . 1 . . . . 3 2 . . . 2 Largest Group 3 | . 1 . . . . 3 1 . . . 2 Highest-Rated Group 63 | . 10 . . . . 63 29 . . . 60 Highest-Rated Ally 30 | . 10 . . . . 21 29 . . . 30 Total Orders . | . . . . . . . . . . . . Ally Attacks 35 | . . . . . . 28 5 . . . 2 Total Damage 671 | . . . . . . 534 106 . . . 31 Kills 8 | . . . . . . 7 1 . . . . Allies Corrupted . | . . . . . . . . . . . . Allies Melted . | . . . . . . . . . . . . Intel | -11 -10 -10 -10 -9 -8 -8 -8 -7 -7 -7 -7 ------- Run | Yrd Mat Min Exi Min Mat Gar Mat Fac Gar Fac Low Robot Analysis Total . | . . . . . . . . . . . . Derelict Logs Recovered 3 | . . 2 . 1 . . . . . . . Drone Launches . | . . . . . . . . . . . . Drone Recoveries . | . . . . . . . . . . . . Exploration | -11 -10 -10 -10 -9 -8 -8 -8 -7 -7 -7 -7 ------------- Run | Yrd Mat Min Exi Min Mat Gar Mat Fac Gar Fac Low Turns Passed 12135 | 250 852 639 550 655 1115 2481 850 316 2369 1841 217 Spaces Moved 5560 | 104 429 327 316 329 544 1243 394 186 946 656 86 Core 4 | 4 . . . . . . . . . . . Treads 2066 | 100 234 . . . . 1 263 186 540 656 86 Legs 1214 | . 195 327 316 329 47 . . . . . . Wheels 2276 | . . . . . 497 1242 131 . 406 . . Hover . | . . . . . . . . . . . . Flight . | . . . . . . . . . . . . Fastest Speed 50 | 50 120 120 120 190 105 115 150 162 162 160 240 Average Speed 166 | 155 149 120 171 190 119 144 159 162 188 231 240 Slowest Speed 243 | 160 190 120 190 190 190 240 240 163 243 243 240 Overloaded Moves . | . . . . . . . . . . . . Propulsion Burnouts . | . . . . . . . . . . . . Robots Hopped . | . . . . . . . . . . . . Cave-ins Triggered 1 | . . . . . . . . . 1 . . Exploration Rate (%) 44 | 6 59 75 71 64 32 89 35 6 78 10 14 Regions Visited 11 Branch Regions 4 Pre-discovered Areas 2 | . . 2 . . . . . . . . . Known Exits Taken 2 | . . . . . 1 . . 1 . . . Unknown Exits Taken 7 | 1 1 1 1 1 . . 1 . . 1 . Scrap Searched 2 | . . 1 . 1 . . . . . . . Spaces Dug 35 | . . . . . 1 24 7 1 1 1 . Terrain Destroyed 192 | . . . . . 1 98 7 1 61 24 . Melee 35 | . . . . . 1 24 7 1 1 1 . Projectile 4 | . . . . . . . . . 4 . . AOE 153 | . . . . . . 74 . . 56 23 . Terrain Rammed . | . . . . . . . . . . . . Walls Destroyed . | . . . . . . . . . . . . Machines Disabled . | . . . . . . . . . . . . Actions | -11 -10 -10 -10 -9 -8 -8 -8 -7 -7 -7 -7 --------- Run | Yrd Mat Min Exi Min Mat Gar Mat Fac Gar Fac Low Total 7617 | 145 529 520 326 345 903 1738 594 192 1346 882 97 Wait 1085 | 5 14 141 . 2 201 233 162 . 188 139 . Move 5551 | 103 428 326 315 328 544 1242 393 186 945 655 86 Hop . | . . . . . . . . . . . . Pick Up 93 | 4 7 4 2 2 23 21 4 . 23 3 . Fast Attach 44 | 7 1 . 1 . 5 4 7 1 10 8 . Attach 43 | . 1 2 2 4 6 7 . 1 6 8 6 Detach 15 | . . . 3 . 3 . . . 2 6 1 Swap 73 | . 7 7 1 . 13 19 3 . 18 4 1 Drop 79 | . 3 6 2 . 19 23 7 . 17 2 . Fire 232 | 23 65 34 . 9 53 3 6 . 30 6 3 Melee 361 | . . . . . 36 160 12 4 99 50 . Ram . | . . . . . . . . . . . . Kick . | . . . . . . . . . . . . Crush 7 | 3 3 . . . . . . . . 1 . Escape Stasis 11 | . . . . . . 3 . . 8 . . Rewire 23 | . . . . . . 23 . . . . . Trap . | . . . . . . . . . . . . Miscellaneous . | . . . . . . . . . . . . Route ------- -11/Scrapyard -10/Materials (discovered 2 exits: [*Mat] / [*Min]) -10/Mines (discovered 3 exits: [*Mat x2] / *Exi) -10/Exiles -9/Mines -8/Materials -8/Garrison (discovered 3 exits: *Mat x3) -8/Materials -7/Factory -7/Garrison (discovered 3 exits: *Fac x3) -7/Factory -7/Lower Caves History --------- Turn | Location | Event 13 | -11/Scrapyard | Discovered new exit (range 16) 251 | -11/Scrapyard | Entered Materials 309 | -10/Materials | Build established: Mutant 612 | -10/Materials | Discovered new exit (range 9) 800 | -10/Materials | Discovered new exit (range 9) 1086 | -10/Materials | Build established: Scavenger-Mutant 1103 | -10/Materials | Entered Mines 1179 | -10/Mines | Core integrity fell below 50% 1271 | -10/Mines | Learned location of Storage (-9) 1300 | -10/Mines | Discovered new exit (range 7) 1320 | -10/Mines | Received a Rocket Launcher from a helpful Derelict 1542 | -10/Mines | Discovered new exit (range 11) 1606 | -10/Mines | A weapon hastily lodged in a ceiling crevice suddenly fell to the ground 1651 | -10/Mines | Learned location of Mines (-9) 1663 | -10/Mines | Found a damaged Exp. Sensor Array with a note attached 1665 | -10/Mines | Found Prototype Device 1665 | -10/Mines | Identified Exp. Sensor Array 1672 | -10/Mines | Deemed a non-threat by the Exiles lab entrance 1673 | -10/Mines | Discovered new exit (range 5) 1742 | -10/Mines | Entered Exiles 1772 | -10/Exiles | Met 8R-AWN 1793 | -10/Exiles | Met EX-HEX 1890 | -10/Exiles | Met EX-DEC 1985 | -10/Exiles | Met EX-BIN 2006 | -10/Exiles | Aligned with FarCom system 2008 | -10/Exiles | Given EX-Vault access code 2052 | -10/Exiles | Opened EX-Vault 2064 | -10/Exiles | Found Firepult 2072 | -10/Exiles | Found Latent Energy Streamer 2115 | -10/Exiles | Warned to stay clear of 0b10 Research branches 2267 | -10/Exiles | Discovered new exit (range 12) 2292 | -10/Exiles | Left Exiles lab with Latent Energy Streamer 2292 | -10/Exiles | Entered Mines 2443 | -9/Mines | Learned Materials stockpile data 2471 | -9/Mines | Assembled infested the area 2476 | -9/Mines | Assisted by a Guerilla fighting off Assembled 2523 | -9/Mines | Core integrity fell below 20% 2551 | -9/Mines | Lost 4 parts (1p2n1w) 2930 | -9/Mines | Discovered new exit (range 9) 2947 | -9/Mines | Entered Materials 2947 | -8/Materials | Evolved 4 slots: Propulsion x1, Utility x3 3816 | -8/Materials | Destroyed 7 combat bots 3880 | -8/Materials | Garrison activated, responded to threat 4062 | -8/Materials | Identified exit to Garrison 4062 | -8/Materials | Entered Garrison 4128 | -8/Garrison | Triggered checkpoint 4262 | -8/Garrison | System corruption reached 10% 4434 | -8/Garrison | Triggered checkpoint 4483 | -8/Garrison | Discovered new exit (range 10) 4643 | -8/Garrison | Core integrity fell below 50% 4644 | -8/Garrison | Triggered checkpoint 4646 | -8/Garrison | Triggered checkpoint 4984 | -8/Garrison | Triggered checkpoint 5081 | -8/Garrison | Discovered new exit (range 12) 5226 | -8/Garrison | Triggered checkpoint 5585 | -8/Garrison | Phase Generator disabled 5587 | -8/Garrison | Discovered new exit (range 11) 5646 | -8/Garrison | Triggered checkpoint 5736 | -8/Garrison | Lost 3 parts (1n1u1w) 5949 | -8/Garrison | Core integrity fell below 20% 6231 | -8/Garrison | Garrison Relay disabled 6330 | -8/Garrison | Installed Relay Interface Framework 6414 | -8/Garrison | Garrison Relay disabled 6543 | -8/Garrison | Entered Materials 6631 | -8/Materials | Repaired Remote Datajack 6670 | -8/Materials | Repaired Imp. Light Armor Plating 6710 | -8/Materials | Build established: Bothacker-Mutant 7379 | -8/Materials | Discovered new exit (range 7) 7393 | -8/Materials | Entered Factory 7393 | -7/Factory | Evolved 2 slots: Propulsion x1, Utility x1 7709 | -7/Factory | Identified exit to Garrison 7709 | -7/Factory | Entered Garrison 7857 | -7/Garrison | Triggered checkpoint 7944 | -7/Garrison | Garrison Relay disabled 8037 | -7/Garrison | Phase Generator disabled 8080 | -7/Garrison | Crushed by falling debris 8281 | -7/Garrison | Triggered checkpoint 8293 | -7/Garrison | Triggered checkpoint 8294 | -7/Garrison | System corruption reached 10% 8527 | -7/Garrison | Discovered new exit (range 14) 9213 | -7/Garrison | Triggered checkpoint 9216 | -7/Garrison | Garrison Relay disabled 9252 | -7/Garrison | Lost 3 parts (3u) 9285 | -7/Garrison | Discovered new exit (range 15) 9563 | -7/Garrison | Triggered checkpoint 9759 | -7/Garrison | Garrison Relay disabled 9830 | -7/Garrison | Expanded RIF knowledge: Patrol Navigation 9933 | -7/Garrison | Discovered new exit (range 10) 10078 | -7/Garrison | Entered Factory 10668 | -7/Factory | Discovered new exit (range 15) 10832 | -7/Factory | Core integrity fell below 50% 10879 | -7/Factory | Cargo convoy interrupted 10889 | -7/Factory | Lost 4 parts (1n2u1w) 11070 | -7/Factory | Repaired Remote Datajack 11115 | -7/Factory | Repaired Remote Datajack 11457 | -7/Factory | Core integrity fell below 20% 11919 | -7/Factory | Entered Lower Caves 11920 | -7/Lower Caves | Encountered a Warlord checkpoint 11939 | -7/Lower Caves | Lost 7 parts (1p2n3u1w) 12128 | -7/Lower Caves | Attracted the attention of an 0b10 outpost 12136 | -7/Lower Caves | Destroyed by Y-64 Sentinel with Wave Gun Last Messages --------------- 12125_ FE A5>D NBTP6BWO%LNHOVS==DUZ 12127_ Penetrated by Slug. 12127_ L-41 Fighter springs to life. 12128_ Y-64 Sentinel: "DETECTED UNIDENTIFIED DERELICT." 12129_ Lgt. Treads destroyed. 12129_ Penetrated by Slug. 12130_ Jacked Y-64 Sentinel... >>amplify_resonance Amplifying resonance, compromised power stability. 12131_ G-47 Trooper Lgt. Nuclear Core critical resonance detonation. 12131_ Y-64 Sentinel Unknown Power Core critical resonance detonation. 12131_ G-47 Trooper destroyed. 12131_ S-27 Virus destroyed. 12132_ Y-64 Sentinel: "REQUESTING BACKUP." 12133_ Jacked L-41 Fighter... >>overwrite_iff Rewriting IFF filter. 12134_ Jacked L-41 Fighter... >>overwrite_iff Rewriting IFF filter. Map ----- +----------------------------------------------------+ | ?????????????????????????????????????????????????? | | ?????????????????????????????????????????????????? | | ?????????????????????????????????????????????????? | | ?????????????????????????????????????????????????? | | ?????????????????????????????????????????????????? | | ?????????????????????????????????????????????????? | | ?????????????????????????????????????????????????? | | ?????????????????????????????????????????????????? | | ?????????????????????????????????????????????????? | | ?????????????????????????????????????????????????? | | ?????????????????????????? ??????????????????????? | | ?????????????????????????? ??????????????????????? | | ?????????????????????????? ??????????????????????? | | ?????????????????????#???? ??????????????????????? | | ????????????????????? #??? ??????????????????????? | | ????????????????????? ### ??????????????????????? | | ?????????????????????? ??????????????????????? | | ?????????????????????? ??????????????????????? | | ?????????????????????? ####### ???????????????? | | ??????????????????????? #""""# ???????????????? | | ??????????????????????? *#! "# ???????????????? | | ???????????????????????# [% % l# ##?????????????? | | ???????????????????????#glY g g# #?###????##???? | | ??????????????????????##ll[; "# #?# ##??? ##??? | | ?????????????????????## ;""""# ### #??? #??? | | ?????????????????????# @;;##### #??? #??? | | ?????????????????????# ##### #### | | ?????????????????????######### ## #?#"% | | ????????????????????????????# #### | | ??????#####??????????#####?## | | ??????# ####?####### ### | | ??????# ### #### | | ??????# ## #??# | | ???????# #### #??# | | ???????# #??## ######??# | | ???????# #???## ##????#### | | ???????# ##????# #?????# | | ??????## ###?????## ###???# | | ??????# ##????????# ## ## | | ?????# ## #?????????# ## ## ###?# | | ????# #######?????????##### #### ##???# | | ???# #????????????????????####??### ##????## | | ???###?????????????????????????????######??????### | | ?????????????????????????????????????????????????? | | ?????????????????????????????????????????????????? | | ?????????????????????????????????????????????????? | | ?????????????????????????????????????????????????? | | ?????????????????????????????????????????????????? | | ?????????????????????????????????????????????????? | | ?????????????????????????????????????????????????? | +----------------------------------------------------+ Best States ------------- Heat Dissipation 62 Energy Generation 16 Energy Capacity 290 Matter Stores 300 Matter Capacity 300 Sight Range 16 Terrain Scan Density 10 Armor Coverage 450 Resistance: TH 10 Resistance: EM 15 Melee Speed Boost 20 Evasion (%) 55 Melee Accuracy 6 Recoil Reduction 4 Offensive Hacking 10 Relay Coupler Types 3 Relay Coupler Value 69 Item Schematics ----------------- None Robot Schematics ------------------ None Fabricated ------------ Nothing Alien Tech Used ----------------- None Achievements -------------- Error 47 Challenges ------------ None Game ------ Seed OvertunedSmartbombMultitool Manual? 0 Play Time 02:21:41 Cumulative 89.7 hours Start 2025.01.02 @ 05:57:43 End 2025.01.02 @ 12:16:51 Sessions 7 Manual Loads 0 Difficulty Rogue Special Mode None Game No. 48 Rogue 44 Adventurer 2 Explorer 2 Win Type - Total 1 Types 0/0/1/0/0/0/0/0/0 Lore% 50 Gallery% 52 Achievement% 40 Wizard Run 0 Options --------- Layout 0 ASCII 0 Keyboard 1 Movement Arrows Keybinds 0 Fullscreen 2 Font 18/Terminus Map View 76x50 Zoom Use 0% Tactical HUD 1 Map Filters NONE Filters NONE Steam 1 RUN: 64c3a5f7-19e9-4ae2-b150-89993bc964f3